bitfinex/quotes_BTCUSD_20220212
["timestamp","ask_amount","ask_price","bid_price","bid_amount"]
[1644649327887,0.35170042,42182.0,42176.0,0.07743769]
[1644649328293,0.00023347,42183.0,42176.0,0.07743769]
[1644649328495,0.00032282,42184.0,42177.0,0.330641]
[1644649328691,0.34629337,42190.0,42177.0,0.330641]
[1644649328692,0.00023347,42183.0,42177.0,0.330641]
[1644649328894,0.00023347,42184.0,42179.0,0.05]
[1644649329091,0.00023347,42189.0,42180.0,0.330641]
[1644649329295,0.00023347,42190.0,42184.0,0.07767374]
[1644649329491,0.00023347,42190.0,42179.0,0.05]
[1644649329492,0.3213023,42190.0,42179.0,0.05]
[1644649329693,0.32153577,42190.0,42180.0,0.330641]
[1644649329993,0.32153577,42190.0,42177.0,0.330641]
[1644649329994,0.5224681,42190.0,42177.0,0.330641]
[1644649330193,0.5224681,42190.0,42177.0,0.380641]
[1644649330393,0.32146069,42190.0,42179.0,0.05]
[1644649330598,0.330641,42183.0,42177.0,0.1]
[1644649330797,0.281196,42181.0,42176.0,7.508e-05]
[1644649330999,0.33194608,42181.0,42176.0,7.508e-05]
[1644649331194,0.330641,42179.0,42176.0,7.508e-05]
[1644649331947,0.330641,42179.0,42176.0,0.08214816]
[1644649332143,0.28194608,42180.0,42176.0,0.08214816]
[1644649332745,0.28194608,42180.0,42176.0,7.508e-05]
[1644649332946,0.28243098,42180.0,42176.0,7.508e-05]
[1644649333145,0.00123498,42180.0,42176.0,7.508e-05]
[1644649333347,0.00123498,42180.0,42177.0,0.330641]
[1644649333547,0.00123498,42180.0,42176.0,7.508e-05]
[1644649333746,0.18266383,42189.0,42177.0,0.5]
[1644649333946,0.18416399,42189.0,42177.0,0.5]
[1644649334147,0.00032294,42181.0,42177.0,0.5]
[1644649334454,0.00032294,42181.0,42180.0,0.23467589]
[1644649334847,0.00150016,42189.0,42180.0,0.23467589]
[1644649335049,0.00150016,42189.0,42180.0,0.09415152]
[1644649335892,0.00150016,42189.0,42185.0,0.19516576]
[1644649336092,0.0632985,42192.0,42185.0,0.2840768]
[1644649336293,0.54015262,42193.0,42185.0,0.2840768]
[1644649336711,0.25117875,42192.0,42185.0,0.2840768]
[1644649336896,0.25117875,42191.0,42185.0,0.2840768]
[1644649337098,0.25117875,42191.0,42187.0,0.22976983]
[1644649337299,0.25117875,42194.0,42187.0,0.22976983]
[1644649337499,0.25117875,42195.0,42187.0,0.23025511]
[1644649337703,0.00048524,42191.0,42187.0,0.23025511]
[1644649338299,0.25117875,42195.0,42188.0,0.3]
[1644649338499,0.63181975,42194.0,42187.0,0.23025511]
[1644649338701,0.63181975,42194.0,42185.0,0.19516576]
[1644649338702,0.25117875,42193.0,42185.0,0.19516576]
[1644649338899,0.25117875,42193.0,42188.0,0.0870919]
[1644649339940,0.20507875,42193.0,42188.0,0.0870919]
[1644649340342,0.20507875,42193.0,42185.0,0.23437845]
[1644649340540,0.7,42195.0,42178.0,0.17348819]
[1644649340743,0.3014145,42194.0,42177.0,0.10427074]
[1644649341044,0.30164939,42194.0,42177.0,0.00427074]
[1644649341243,0.07661367,42191.0,42185.0,0.07346066]
[1644649341642,0.07661367,42191.0,42188.0,0.00132838]
[1644649342043,0.00023489,42193.0,42188.0,0.00132838]
[1644649342246,0.35164939,42194.0,42188.0,0.00132838]
[1644649342448,0.00072011,42193.0,42187.0,0.00048528]
[1644649342648,0.32815199,42193.0,42187.0,0.00048528]
[1644649342901,0.32815199,42193.0,42188.0,0.330641]
[1644649342902,0.32838688,42193.0,42188.0,0.330641]
[1644649343101,0.32815199,42193.0,42188.0,0.330641]
[1644649343301,0.32815199,42193.0,42187.0,0.00048528]
[1644649343503,0.00023489,42194.0,42186.0,0.24222079]
[1644649343704,0.35164939,42195.0,42186.0,0.24222079]
[1644649344002,0.20114718,42190.0,42186.0,0.24222079]
[1644649344203,0.20114718,42190.0,42189.0,0.23044421]
[1644649344404,0.00023489,42193.0,42189.0,0.56108521]
[1644649344601,0.20114718,42194.0,42190.0,0.330641]
[1644649344602,0.00023489,42194.0,42190.0,0.330641]
[1644649344804,0.20114718,42195.0,42190.0,0.330641]
[1644649344805,0.00023489,42193.0,42190.0,0.330641]
[1644649345001,1.16617463,42196.0,42190.0,0.330641]
[1644649345002,0.20138207,42194.0,42190.0,0.330641]
[1644649345201,0.20138207,42195.0,42190.0,0.330641]
[1644649345401,0.20138207,42195.0,42192.0,0.06418375]
[1644649345603,0.20114718,42194.0,42192.0,0.06418375]
[1644649345802,0.20114718,42194.0,42193.0,0.330641]
[1644649346002,0.19954191,42194.0,42193.0,0.330641]
[1644649346304,1.16640952,42196.0,42181.0,0.1]
[1644649346503,0.00023489,42195.0,42181.0,0.1]
[1644649346755,0.30164939,42195.0,42189.0,0.00294661]
[1644649347055,0.00023489,42195.0,42189.0,0.00294661]
[1644649347255,0.08856238,42194.0,42190.0,0.0004869]
[1644649347458,0.3014145,42192.0,42190.0,0.0004869]
[1644649347654,0.00023489,42193.0,42190.0,0.0004869]
[1644649347855,0.08879727,42194.0,42190.0,0.0004869]
[1644649348057,0.13879727,42194.0,42190.0,0.0004869]
[1644649348255,0.18879727,42194.0,42189.0,0.00294661]
[1644649348455,0.18879727,42194.0,42190.0,0.0004869]
[1644649348857,0.25147623,42191.0,42190.0,0.0004869]
[1644649349457,0.00023489,42193.0,42189.0,0.00294661]
[1644649349458,0.25171112,42193.0,42189.0,0.00294661]
[1644649349661,0.25147623,42193.0,42189.0,0.00294661]
[1644649349962,0.25171112,42193.0,42189.0,0.00294661]
[1644649350163,0.25147623,42193.0,42189.0,0.00294661]
[1644649350793,0.330641,42192.0,42189.0,0.00343351]
[1644649350994,0.25140115,42190.0,42189.0,0.00343351]
[1644649351193,0.00072172,42195.0,42189.0,0.33407451]
[1644649351393,0.00023489,42192.0,42189.0,0.00343351]
[1644649351593,0.00072172,42195.0,42189.0,0.00343351]
[1644649351793,0.00023489,42195.0,42191.0,0.00119012]
[1644649352194,0.00048684,42195.0,42191.0,0.00119012]
[1644649352394,0.00072173,42195.0,42191.0,0.00119012]
[1644649352994,0.00023489,42195.0,42191.0,0.00119012]
[1644649353195,1.16640952,42196.0,42191.0,0.00119012]
[1644649353395,0.00072174,42195.0,42191.0,0.08861135]
[1644649353595,0.00048685,42195.0,42191.0,0.08861135]
[1644649353796,0.00072174,42195.0,42191.0,0.08861135]
[1644649353997,0.00072174,42195.0,42191.0,0.00119012]
[1644649354243,0.35188514,42195.0,42191.0,0.00119012]
[1644649354544,0.00072174,42195.0,42191.0,0.00119012]
[1644649355342,0.55,42194.0,42190.0,0.06513285]
[1644649355542,0.55023489,42194.0,42185.0,0.36374447]
[1644649355743,0.30182496,42192.0,42190.0,0.00048691]
[1644649355942,0.30182496,42192.0,42191.0,0.330641]
[1644649356142,0.30182496,42192.0,42190.0,0.00048691]
[1644649356345,0.00023489,42193.0,42190.0,0.00048691]
[1644649356543,0.30182496,42192.0,42190.0,0.00048691]
[1644649356744,0.30182496,42192.0,42188.0,0.06594508]
[1644649357147,0.30182496,42192.0,42185.0,0.12181139]
[1644649357344,0.20118103,42187.0,42185.0,0.12181139]
[1644649357547,0.20118103,42187.0,42186.0,0.330641]
[1644649357900,0.20118103,42187.0,42185.0,0.12181139]
[1644649358099,0.20118103,42187.0,42186.0,0.330641]
[1644649358901,0.20118103,42189.0,42186.0,0.330641]
[1644649359501,0.20118103,42189.0,42188.0,0.330641]
[1644649359703,0.20141592,42189.0,42188.0,0.330641]
[1644649359901,0.20118103,42189.0,42188.0,0.330641]
[1644649361303,0.20118103,42190.0,42188.0,0.330641]
[1644649361752,0.20141592,42191.0,42188.0,0.330641]
[1644649361952,0.20118103,42191.0,42188.0,0.330641]
[1644649362550,0.20118103,42191.0,42190.0,0.54760538]
[1644649362751,0.25140556,42192.0,42191.0,0.330641]
[1644649363054,0.25140556,42192.0,42188.0,0.330641]
[1644649363251,0.20119498,42190.0,42188.0,0.330641]
[1644649363450,0.20119498,42189.0,42188.0,0.330641]
[1644649363650,0.20119498,42190.0,42188.0,0.5411978]
[1644649364250,0.00023613,42191.0,42188.0,0.5411978]
[1644649364251,0.20119498,42191.0,42188.0,0.5411978]
[1644649364453,0.20119498,42190.0,42188.0,0.5411978]
[1644649366493,0.20119498,42190.0,42188.0,0.330641]
[1644649366892,0.19958971,42190.0,42188.0,0.330641]
[1644649367695,0.25319944,42191.0,42188.0,0.330641]
[1644649367895,0.25296331,42191.0,42188.0,0.330641]
[1644649368100,0.25296331,42191.0,42187.0,0.00048972]
[1644649368101,0.25140556,42189.0,42187.0,0.00048972]
[1644649368299,0.331196,42188.0,42187.0,0.00048972]
[1644649368499,0.331196,42188.0,42187.0,9.72e-06]
[1644649368500,1.49109865,42188.0,42187.0,9.72e-06]
[1644649368700,0.330641,42184.0,42183.0,0.0001685]
[1644649368895,1.07890861,42184.0,42183.0,0.0001685]
[1644649369152,0.49575232,42184.0,42183.0,0.0001685]
[1644649369346,0.79753169,42184.0,42183.0,0.0001685]
[1644649369645,0.49575232,42184.0,42183.0,0.0001685]
[1644649370244,0.428141,42184.0,42183.0,0.0001685]
[1644649370445,0.72998041,42184.0,42183.0,0.0001685]
[1644649370645,0.34933941,42184.0,42173.0,0.505]
[1644649370857,0.05,42185.0,42176.0,0.05]
[1644649370858,0.55336835,42185.0,42176.0,0.05]
[1644649371051,0.00055509,42186.0,42177.0,0.6413934]
[1644649371447,0.00079143,42186.0,42177.0,0.430641]
[1644649371645,0.00055509,42186.0,42180.0,0.330641]
[1644649371846,0.00055509,42186.0,42179.0,0.25922755]
[1644649372447,0.00055509,42186.0,42180.0,0.24991914]
[1644649373296,0.25208403,42186.0,42180.0,0.24991914]
[1644649373497,0.25208403,42186.0,42179.0,0.25922755]
[1644649373896,0.25208403,42186.0,42174.0,0.34876056]
[1644649374096,0.25152894,42184.0,42174.0,0.34876056]
[1644649374297,0.53272494,42183.0,42174.0,0.2302]
[1644649374595,0.25152894,42183.0,42178.0,0.08309662]
[1644649374998,0.25152894,42185.0,42180.0,0.22855971]
[1644649376000,0.25208403,42186.0,42180.0,0.22855971]
[1644649376298,0.25208403,42186.0,42180.0,0.22905019]
[1644649376497,0.00184183,42185.0,42181.0,0.00297678]
[1644649376739,0.00184183,42185.0,42181.0,0.00314526]
[1644649376942,0.20133656,42184.0,42181.0,0.00314526]
[1644649377140,0.20133656,42184.0,42182.0,0.53625448]
[1644649377340,0.20317839,42185.0,42182.0,0.00016848]
[1644649377540,0.20133656,42184.0,42182.0,0.00016848]
[1644649377742,0.25152894,42184.0,42182.0,0.00016848]
[1644649377941,0.25152894,42183.0,42182.0,0.00016848]
[1644649378741,0.55,42182.0,42181.0,0.00296759]
[1644649378943,0.32490028,42183.0,42181.0,0.00296759]
[1644649379841,0.25152894,42183.0,42181.0,0.00296759]
[1644649380240,0.25152894,42184.0,42181.0,0.00296759]
[1644649381294,0.25420017,42183.0,42180.0,0.00044508]
[1644649382093,0.25152894,42182.0,42178.0,0.2573561]
[1644649382393,0.00267123,42183.0,42179.0,0.00044509]
[1644649382394,0.20138006,42181.0,42179.0,0.00044509]
[1644649382993,0.20138006,42180.0,42179.0,0.00044509]
[1644649383395,0.20138006,42180.0,42174.0,0.07395017]
[1644649383600,0.20138006,42180.0,42177.0,0.00046074]
[1644649383895,0.20138006,42180.0,42178.0,0.330641]
[1644649384145,0.20138006,42180.0,42177.0,0.00046074]
[1644649384440,0.20138006,42180.0,42175.0,0.32405599]
[1644649384640,0.20138006,42180.0,42176.0,0.00046074]
[1644649385039,0.20138006,42180.0,42177.0,0.330641]
[1644649385439,0.25420017,42183.0,42177.0,0.330641]
[1644649385440,0.20138006,42181.0,42177.0,0.330641]
[1644649385942,0.20138006,42181.0,42177.0,0.33110174]
[1644649386144,0.00144412,42180.0,42178.0,0.330641]
[1644649386740,0.00144412,42180.0,42177.0,0.00046074]
[1644649386940,0.00144412,42180.0,42175.0,0.32405599]
[1644649387140,0.00144412,42180.0,42177.0,0.00045959]
[1644649387740,0.20282418,42180.0,42177.0,0.00045959]
[1644649388206,0.20282418,42180.0,42175.0,0.32405599]
[1644649388408,0.20282418,42180.0,42176.0,0.00045959]
[1644649388608,0.00144412,42180.0,42176.0,0.00045959]
[1644649389409,0.00144412,42180.0,42175.0,0.32405599]
[1644649389610,0.20282418,42180.0,42176.0,0.0004596]
[1644649390011,0.00144412,42180.0,42176.0,0.0004596]
[1644649390610,0.00144412,42180.0,42175.0,0.32405599]
[1644649390812,0.00144412,42180.0,42176.0,0.00045976]
[1644649391656,0.00144412,42180.0,42175.0,0.32405599]
[1644649391849,0.20282418,42180.0,42176.0,0.00045976]
[1644649392852,0.20282418,42180.0,42175.0,0.05929103]
[1644649393054,0.20282418,42180.0,42176.0,0.00045976]
[1644649394156,0.20282418,42180.0,42175.0,0.05929103]
[1644649394353,0.20282418,42180.0,42176.0,0.00045974]
[1644649395389,0.20282418,42180.0,42175.0,0.05929103]
[1644649395692,0.20282418,42180.0,42176.0,0.00045974]
[1644649396096,0.48257606,42177.0,42176.0,0.00045974]
[1644649396293,0.378696,42177.0,42176.0,0.00045974]
[1644649396493,0.68053541,42177.0,42176.0,0.00045974]
[1644649396691,0.68053541,42177.0,42174.0,0.00045974]
[1644649396894,0.46572091,42175.0,42174.0,0.00045974]
[1644649397094,0.54280372,42175.0,42174.0,0.00045974]
[1644649397293,0.94432264,42175.0,42174.0,0.00045974]
[1644649397693,0.69280372,42175.0,42164.0,0.05]
[1644649397894,0.20120717,42171.0,42164.0,0.05]
[1644649398095,0.23449534,42168.0,42161.0,0.505]
[1644649398396,0.23449534,42168.0,42156.0,0.9357623]
[1644649398397,0.81368977,42167.0,42156.0,0.9357623]
[1644649398594,0.0475,42166.0,42156.0,0.2016623]
[1644649398793,0.330641,42164.0,42156.0,0.2016623]
[1644649398997,0.281196,42162.0,42156.0,0.2016623]
[1644649399252,0.331196,42162.0,42159.0,0.0004598]
[1644649399454,0.330641,42160.0,42159.0,0.0004598]
[1644649399850,0.05,42162.0,42159.0,0.0004598]
[1644649400155,0.29710728,42166.0,42157.0,0.45384034]
[1644649400350,0.29710728,42166.0,42158.0,0.0004598]
[1644649400351,0.330641,42165.0,42158.0,0.0004598]
[1644649400550,0.0475,42168.0,42158.0,0.0004598]
[1644649400751,0.281188,42167.0,42158.0,0.0004598]
[1644649400953,0.281188,42164.0,42158.0,0.0004598]
[1644649401353,0.281188,42164.0,42154.0,0.2016623]
[1644649401354,0.54894709,42164.0,42154.0,0.2016623]
[1644649401559,0.281188,42162.0,42159.0,0.0004598]
[1644649401752,0.331188,42162.0,42159.0,0.0004598]
[1644649402652,0.331188,42162.0,42154.0,0.06384885]
[1644649402892,0.331188,42162.0,42150.0,0.9530623]
[1644649403591,0.331188,42162.0,42150.0,0.7066623]
[1644649403992,0.331188,42162.0,42152.0,0.08102119]
[1644649405190,0.331188,42162.0,42155.0,0.00048915]
[1644649405791,0.281188,42157.0,42155.0,0.00048915]
[1644649406092,0.281188,42157.0,42150.0,0.505]
[1644649406753,0.281188,42156.0,42150.0,0.505]
[1644649407549,0.281188,42156.0,42146.0,0.34993067]
[1644649407550,0.0475,42155.0,42146.0,0.34993067]
[1644649407748,0.281188,42154.0,42146.0,0.08043067]
[1644649407948,0.328688,42154.0,42146.0,0.08043067]
[1644649408349,0.328688,42154.0,42144.0,0.2448]
[1644649408550,0.281188,42152.0,42142.0,0.843]
[1644649408755,0.381188,42152.0,42142.0,0.793]
[1644649408948,0.1,42152.0,42142.0,0.793]
[1644649409149,0.281188,42151.0,42142.0,0.793]
[1644649409352,0.35684676,42146.0,42142.0,0.793]
[1644649409555,0.35684676,42146.0,42138.0,0.5297]
[1644649409751,0.45684676,42146.0,42138.0,0.5297]
[1644649409950,0.281188,42145.0,42142.0,0.00044729]
[1644649410600,0.59071339,42145.0,42142.0,0.00044729]
[1644649410901,0.281188,42143.0,42137.0,0.00013801]
[1644649411109,0.281188,42143.0,42141.0,0.00045573]
[1644649411301,0.59597921,42142.0,42141.0,0.00045573]
[1644649411500,0.281188,42142.0,42141.0,0.00045573]
[1644649412099,0.281188,42142.0,42136.0,0.00013801]
[1644649412300,0.7475,42144.0,42135.0,0.1938999]
[1644649412301,0.281188,42141.0,42135.0,0.1938999]
[1644649412904,0.281188,42141.0,42138.0,0.08925423]
[1644649413104,0.3389034,42155.0,42141.0,0.38483771]
[1644649413105,0.00215331,42155.0,42141.0,0.38483771]
[1644649413302,0.281188,42153.0,42141.0,0.38483771]
[1644649413501,0.281188,42153.0,42142.0,0.21461987]
[1644649413900,0.53953753,42153.0,42142.0,0.21461987]
[1644649414344,0.07032028,42149.0,42142.0,0.21461987]
[1644649414546,0.281188,42148.0,42142.0,0.21461987]
[1644649415045,0.281188,42148.0,42142.0,0.52377325]
[1644649415245,0.281188,42148.0,42142.0,0.58311055]
[1644649415847,0.00215331,42155.0,42144.0,0.330694]
[1644649416048,0.00215331,42155.0,42146.0,0.330694]
[1644649416346,0.00224494,42154.0,42148.0,0.04709768]
[1644649416545,0.00224494,42154.0,42149.0,0.09072269]
[1644649416747,0.00195355,42167.0,42164.0,0.07399965]
[1644649417150,0.281188,42166.0,42164.0,0.07399965]
[1644649417347,0.00048853,42169.0,42163.0,0.23063981]
[1644649417546,0.281188,42168.0,42163.0,0.23063981]
[1644649418794,0.06621005,42166.0,42163.0,0.23063981]
[1644649418994,0.281188,42165.0,42163.0,0.23063981]
[1644649419394,0.281188,42168.0,42163.0,0.23063981]
[1644649421095,0.07767339,42166.0,42163.0,0.23063981]
[1644649421300,0.281188,42165.0,42163.0,0.23063981]
[1644649421944,0.281188,42165.0,42157.0,0.11862077]
[1644649422944,0.281188,42165.0,42158.0,0.22753292]
[1644649423545,0.281188,42165.0,42158.0,0.22253292]
[1644649425147,0.281188,42165.0,42155.0,0.605]
[1644649425596,0.281188,42165.0,42155.0,0.6]
[1644649425993,0.281188,42165.0,42156.0,0.08757504]
[1644649426194,0.281188,42163.0,42156.0,0.31203404]
[1644649426396,0.281188,42163.0,42156.0,0.324459]
[1644649426994,0.281188,42163.0,42156.0,0.1]
[1644649427195,0.281188,42163.0,42157.0,0.26893895]
[1644649427396,0.281188,42163.0,42155.0,0.15931603]
[1644649427598,0.281188,42163.0,42155.0,0.05931603]
[1644649428097,0.08855292,42157.0,42155.0,0.05931603]
[1644649428295,0.36974092,42157.0,42153.0,0.62363335]
[1644649428495,0.36974092,42157.0,42153.0,0.61363335]
[1644649430547,0.00420408,42165.0,42164.0,0.16660264]
[1644649430747,0.08295259,42165.0,42164.0,0.16660264]
[1644649431148,0.08075746,42165.0,42164.0,0.16660264]
[1644649433009,0.00200895,42165.0,42164.0,0.16660264]
[1644649435511,0.08406967,42165.0,42164.0,0.16660264]
[1644649436112,0.13406967,42165.0,42164.0,0.16660264]
[1644649436312,0.13806965,42165.0,42164.0,0.16660264]
[1644649436752,0.05,42162.0,42153.0,0.505]
[1644649436951,0.30173347,42162.0,42153.0,0.505]
[1644649437551,0.05,42162.0,42154.0,0.08377466]
[1644649437955,0.05,42162.0,42153.0,0.505]
[1644649438549,0.27263917,42162.0,42153.0,0.505]
[1644649439353,0.07898539,42154.0,42150.0,0.2695]
[1644649439554,0.12898539,42154.0,42150.0,0.2695]
[1644649439754,0.17898539,42154.0,42150.0,0.2695]
[1644649439954,0.17898539,42154.0,42145.0,0.7629]
[1644649443205,0.17734815,42154.0,42145.0,0.7629]
[1644649444354,0.06913801,42146.0,42145.0,0.7629]
[1644649444547,0.06913801,42146.0,42142.0,0.21002572]
[1644649445247,0.06913801,42146.0,42142.0,0.00013801]
[1644649445447,0.09836276,42154.0,42141.0,0.38497572]
[1644649445647,0.04836276,42154.0,42141.0,0.58634929]
[1644649445850,0.31672611,42157.0,42141.0,0.58634929]
[1644649446247,0.00690125,42153.0,42141.0,0.58634929]
[1644649446754,0.06843118,42145.0,42141.0,0.38497572]
[1644649446950,0.0475,42144.0,42141.0,0.38497572]
[1644649447449,0.0475,42144.0,42141.0,0.38483771]
[1644649448903,0.3340412,42143.0,42141.0,0.38497572]
[1644649449103,0.0475,42142.0,42141.0,0.38483771]
[1644649449304,0.36575211,42142.0,42141.0,0.38483771]
[1644649449805,0.41575211,42142.0,42141.0,0.38483771]
[1644649451649,0.41515211,42142.0,42141.0,0.38483771]
[1644649453549,0.41515211,42142.0,42141.0,0.38469087]
[1644649453748,0.36575211,42142.0,42141.0,0.38469087]
[1644649454148,0.41575211,42142.0,42141.0,0.38469087]
[1644649456202,0.41745698,42142.0,42141.0,0.38469087]
[1644649456400,0.42255065,42142.0,42141.0,0.38469087]
[1644649459152,0.42255065,42142.0,42141.0,0.28469087]
[1644649466204,0.10429854,42142.0,42141.0,0.28469087]
[1644649470499,0.00679854,42142.0,42141.0,0.28469087]
[1644649471303,0.00679854,42142.0,42141.0,0.33219087]
[1644649471706,0.00679854,42142.0,42141.0,0.57399087]
[1644649472401,0.00679854,42142.0,42141.0,0.33219087]
[1644649472803,0.00679854,42142.0,42141.0,0.43219087]
[1644649473202,0.00679854,42142.0,42141.0,0.75205295]
[1644649473406,0.07484132,42159.0,42157.0,0.1947562]
[1644649473805,0.28031181,42158.0,42144.0,0.55513801]
[1644649474008,0.28031181,42158.0,42144.0,0.65513801]
[1644649474255,0.28031181,42158.0,42144.0,0.60513801]
[1644649474551,0.28031181,42158.0,42144.0,0.50513801]
[1644649474552,0.33031181,42158.0,42144.0,0.50513801]
[1644649474751,0.33031181,42158.0,42149.0,0.08821423]
[1644649474949,0.33031181,42158.0,42152.0,0.26024808]
[1644649475751,0.05,42158.0,42152.0,0.26024808]
[1644649475951,0.17484132,42159.0,42152.0,0.26024808]
[1644649477354,0.13687872,42163.0,42152.0,0.26024808]
[1644649477555,0.13687872,42163.0,42159.0,0.26151468]
[1644649478201,0.13687872,42163.0,42161.0,0.20800062]
[1644649478400,0.13687872,42163.0,42160.0,0.08332557]
[1644649479902,0.13687872,42163.0,42161.0,0.18728495]
[1644649481102,0.00219951,42168.0,42161.0,0.18728495]
[1644649481505,0.00219951,42168.0,42161.0,0.18842467]
[1644649481506,0.001948,42162.0,42161.0,0.18842467]
[1644649485900,0.001948,42162.0,42161.0,0.00113972]
[1644649486303,0.00479684,42168.0,42161.0,0.00220267]
[1644649486504,0.00479684,42168.0,42162.0,0.378236]
[1644649486702,0.00479684,42168.0,42163.0,0.38023869]
[1644649486903,0.00479684,42168.0,42164.0,0.0475]
[1644649487403,0.00479684,42168.0,42165.0,0.28036541]
[1644649487604,0.00479684,42168.0,42166.0,0.29209421]
[1644649490049,0.00479684,42168.0,42167.0,0.30241805]
[1644649490249,0.00479684,42168.0,42167.0,0.35558867]
[1644649490849,0.00479684,42168.0,42166.0,0.12111018]
[1644649491046,0.00479684,42168.0,42167.0,0.0475]
[1644649491247,0.00259733,42168.0,42167.0,0.0475]
[1644649491453,0.00041684,42168.0,42167.0,0.38373291]
[1644649491653,0.0002837,42170.0,42168.0,0.7]
[1644649491847,0.0002837,42170.0,42169.0,0.0975]
[1644649492048,0.004,42185.0,42169.0,0.0975]
[1644649492252,0.00120008,42177.0,42173.0,0.05]
[1644649492449,0.00120008,42177.0,42176.0,0.24750533]
[1644649492651,0.00120008,42177.0,42176.0,0.55474947]
[1644649493111,0.004,42185.0,42176.0,0.65474947]
[1644649493512,0.00520008,42185.0,42183.0,0.2993949]
[1644649493711,0.00520008,42185.0,42183.0,0.09193807]
[1644649494109,0.00520008,42185.0,42183.0,0.00306766]
[1644649494508,0.004,42185.0,42183.0,0.00306766]
[1644649497161,0.004,42185.0,42182.0,0.08495591]
[1644649497362,0.004,42185.0,42177.0,0.3476]
[1644649497569,0.004,42185.0,42176.0,0.35316106]
[1644649498362,0.00045585,42182.0,42177.0,0.26379045]
[1644649498561,0.00045585,42182.0,42179.0,0.08291115]
[1644649499262,0.004,42185.0,42179.0,0.08291115]
[1644649499462,0.00045074,42183.0,42179.0,0.08291115]
[1644649500262,0.00045074,42183.0,42177.0,0.36379045]
[1644649500504,0.004,42185.0,42177.0,0.26379045]
[1644649500708,0.00045074,42183.0,42177.0,0.36379045]
[1644649500907,0.00045074,42183.0,42176.0,0.00565573]
[1644649501309,0.07509645,42177.0,42176.0,0.00565573]
[1644649501506,0.00267988,42183.0,42176.0,0.0010626]
[1644649501706,0.00222914,42183.0,42176.0,0.0010626]
[1644649501907,0.00045075,42179.0,42176.0,0.0010626]
[1644649502810,0.00222914,42183.0,42176.0,0.0010626]
[1644649503209,0.00041765,42180.0,42176.0,0.0010626]
[1644649504160,0.00222914,42183.0,42176.0,0.0020626]
[1644649504359,0.00041764,42180.0,42176.0,0.0020626]
[1644649504656,0.08666627,42177.0,42176.0,0.0020626]
[1644649506557,0.08666627,42177.0,42176.0,0.001]
[1644649509905,0.08666627,42177.0,42174.0,0.24617537]
[1644649510608,0.08666627,42177.0,42172.0,0.7827]
[1644649510807,0.08666627,42177.0,42172.0,0.84642423]
[1644649511206,0.002031,42177.0,42176.0,0.00476235]
[1644649511669,0.00245327,42177.0,42176.0,0.00476235]
[1644649512469,0.002031,42177.0,42176.0,0.00476235]
[1644649512670,0.07357621,42177.0,42176.0,0.00476235]
[1644649513273,0.002031,42177.0,42176.0,0.00476235]
[1644649516607,0.002031,42177.0,42176.0,0.00141721]
[1644649517810,0.002031,42177.0,42176.0,0.00051657]
[1644649518210,0.28875106,42177.0,42176.0,0.00051657]
[1644649518615,0.43625106,42177.0,42176.0,0.00051657]
[1644649518816,0.68721858,42177.0,42176.0,0.00051657]
[1644649519270,0.45069203,42177.0,42176.0,0.00051657]
[1644649519466,0.45069203,42177.0,42176.0,0.00012547]
[1644649519667,0.149531,42177.0,42176.0,0.00012547]
[1644649520264,0.45099438,42177.0,42176.0,0.00012547]
[1644649520664,0.7,42176.0,42161.0,0.42958202]
[1644649520865,0.20096976,42172.0,42161.0,0.42958202]
[1644649521169,0.08530354,42167.0,42161.0,0.42958202]
[1644649521764,0.08530354,42167.0,42166.0,0.2020112]
[1644649522566,0.00042244,42169.0,42166.0,0.2020112]
[1644649523205,0.50360535,42171.0,42166.0,0.2020112]
[1644649523604,0.00042243,42170.0,42166.0,0.2020112]
[1644649523808,0.06828019,42168.0,42166.0,0.2020112]
[1644649525105,0.00042244,42169.0,42166.0,0.2020112]
[1644649526107,0.20096976,42173.0,42166.0,0.2020112]
[1644649526663,0.00042244,42170.0,42166.0,0.2020112]
[1644649527053,0.00199493,42168.0,42166.0,0.2020112]
[1644649527854,0.08230629,42167.0,42166.0,0.2020112]
[1644649528056,0.08230629,42167.0,42162.0,0.2376]
[1644649528255,0.08230629,42167.0,42161.0,0.52958202]
[1644649528458,0.08230629,42167.0,42158.0,0.0001]
[1644649528658,0.0475,42166.0,42157.0,0.0001]
[1644649528856,0.30937237,42165.0,42157.0,0.0001]
[1644649529264,0.35937237,42165.0,42157.0,0.0001]
[1644649529457,0.35937237,42165.0,42156.0,0.0001]
[1644649529658,0.24846976,42164.0,42156.0,0.0001]
[1644649529859,0.24846976,42164.0,42151.0,0.784]
[1644649529860,0.20096976,42163.0,42153.0,0.0001]
[1644649530058,0.56087958,42162.0,42152.0,0.0001]
[1644649530259,0.56087958,42162.0,42149.0,0.0001]
[1644649530260,0.20096976,42161.0,42149.0,0.0001]
[1644649530506,0.0475,42160.0,42149.0,0.0001]
[1644649531205,0.31240982,42159.0,42149.0,0.0001]
[1644649531404,0.0475,42158.0,42149.0,0.0001]
[1644649532005,0.28514846,42157.0,42149.0,0.0001]
[1644649532207,0.08131897,42153.0,42149.0,0.0001]
[1644649533708,0.08131897,42153.0,42145.0,0.00023801]
[1644649533907,0.08131897,42153.0,42145.0,0.0001]
[1644649534162,0.08131897,42153.0,42145.0,0.00023801]
[1644649534360,0.08131897,42153.0,42147.0,0.20481249]
[1644649534557,0.08131897,42153.0,42151.0,0.21512455]
[1644649534759,0.08131897,42153.0,42152.0,0.0001]
[1644649535358,0.08131897,42153.0,42148.0,0.0001]
[1644649535558,0.29187808,42152.0,42145.0,0.00013801]
[1644649535762,0.29187808,42152.0,42144.0,0.00023801]
[1644649535957,0.29187808,42152.0,42144.0,0.0001]
[1644649536157,0.29187808,42152.0,42144.0,0.00023801]
[1644649536366,0.07700764,42146.0,42144.0,0.0001]
[1644649536561,0.07700764,42146.0,42144.0,0.00013801]
[1644649536760,0.29187808,42152.0,42143.0,0.00023801]
[1644649536964,0.29187808,42152.0,42142.0,0.00023801]
[1644649536965,0.29385701,42152.0,42142.0,0.00023801]
[1644649537160,0.29385701,42152.0,42142.0,0.0001]
[1644649537361,0.29385701,42152.0,42142.0,0.00023801]
[1644649537562,0.0475,42151.0,42142.0,0.0001]
[1644649538217,0.0475,42151.0,42142.0,0.00023801]
[1644649538417,0.0475,42151.0,42142.0,0.0001]
[1644649538617,0.0475,42151.0,42142.0,0.00023801]
[1644649540019,0.07741257,42148.0,42142.0,0.00023801]
[1644649540518,0.07741257,42148.0,42146.0,0.20908386]
[1644649540717,0.07741257,42148.0,42147.0,0.0001]
[1644649541116,0.07741257,42148.0,42144.0,0.00013801]
[1644649541317,0.07741257,42148.0,42142.0,0.00023801]
[1644649541517,0.07741257,42148.0,42142.0,0.0001]
[1644649541757,0.07741257,42148.0,42142.0,0.00023801]